bitfinex-derivatives/quotes_SOLF0:USTF0_20250720
["timestamp","ask_amount","ask_price","bid_price","bid_amount"]
[1753055267147,3.16,181.33,181.32,108.12]
[1753055268442,3.16,181.33,181.32,105.1]
[1753055268638,3.16,181.33,181.32,108.12]
[1753055269748,3.16,181.33,181.32,105.1]
[1753055269948,8.6718,181.33,181.32,105.1]
[1753055270142,3.16,181.33,181.28,107.20676236]
[1753055270339,3.16,181.33,181.29,3.02]
[1753055270536,3.16,181.31,181.29,3.02]
[1753055270940,3.16,181.33,181.3,3.02]
[1753055271246,3.16,181.32,181.31,3.02]
[1753055271448,5.5127,181.31,181.29,3.02]
[1753055271649,3.16,181.3,181.29,3.02]
[1753055272041,8.6731,181.29,181.28,105.1]
[1753055272545,5.5134,181.28,181.25,3.02]
[1753055272739,2.10676236,181.33,181.24,105.1]
[1753055272947,370.4,181.43,181.24,105.1]
[1753055272948,3.16,181.26,181.25,3.02]
[1753055273339,3.16,181.26,181.24,105.1]
[1753055273545,3.16,181.26,181.19,370.32]
[1753055273546,5.5149,181.23,181.21,3.02]
[1753055273747,3.16,181.22,181.21,3.02]
[1753055275156,3.16,181.26,181.19,478.46]
[1753055275350,3.16,181.26,181.19,108.14]
[1753055275552,5.5153,181.22,181.19,108.14]
[1753055275849,3.16,181.21,181.2,3.02]
[1753055276052,2.10676236,181.35,181.2,3.02]
[1753055276254,2.10676236,181.28,181.2,3.02]
[1753055276553,2.10676236,181.28,181.19,110.6359]
[1753055276743,3.16,181.27,181.2,3.02]
[1753055277444,3.16,181.23,181.17,3.02]
[1753055278748,3.15,181.21,181.16,105.14]
[1753055278951,5.5172,181.16,181.12,3.14]
[1753055279151,3.15,181.19,181.13,3.14]
[1753055279348,3.15,181.19,181.13,5.24676236]
[1753055279549,5.5169,181.17,181.13,3.14]
[1753055279750,3.15,181.19,181.13,3.14]
[1753055279751,3.15,181.16,181.14,3.14]
[1753055279951,3.15,181.15,181.14,3.14]
[1753055280148,2.10676236,181.26,181.14,3.14]
[1753055280357,27.5332,181.34,181.12,105.12]
[1753055280358,3.15,181.24,181.19,2.10676236]
[1753055280656,3.15,181.22,181.19,2.10676236]
[1753055280850,2.10676236,181.24,181.18,105.14]
[1753055281047,2.10676236,181.24,181.18,108.28]
[1753055281048,7.03940132,181.23,181.18,108.28]
[1753055281252,3.15,181.21,181.18,105.14]
[1753055281452,2.10676236,181.31,181.2,3.14]
[1753055281657,7.03585107,181.3,181.24,3.14]
[1753055281957,3.15,181.33,181.26,3.14]
[1753055282151,5.5129,181.3,181.26,3.14]
[1753055282357,3.15,181.31,181.26,3.14]
[1753055282959,3.15,181.31,181.23,105.14]
[1753055282960,3.15,181.28,181.27,3.14]
[1753055283162,3.15,181.28,181.23,105.14]
[1753055283556,8.6646,181.24,181.23,105.14]
[1753055283756,3.15,181.24,181.19,3.14]
[1753055283956,3.15,181.24,181.18,105.14]
[1753055284161,3.15,181.24,181.19,3.14]
[1753055284357,3.15,181.27,181.21,3.43751416]
[1753055284555,3.15,181.28,181.23,3.43751416]
[1753055284761,3.15,181.27,181.25,3.14]
[1753055285262,3.15,181.27,181.26,3.14]
[1753055285457,3.15,181.33,181.26,3.14]
[1753055285659,3.15,181.33,181.28,3.43751416]
[1753055285964,3.15,181.32,181.3,3.14]
[1753055286554,3.15,181.32,181.28,3.43751416]
[1753055286555,3.15,181.35,181.31,3.14]
[1753055286763,3.15,181.34,181.32,3.14]
[1753055287066,5.5118,181.33,181.32,3.14]
[1753055287259,3.43751416,181.4,181.2,208.03626165]
[1753055287461,5.5128,181.3,181.26,5.5137]
[1753055287665,3.15,181.29,181.25,3.43751416]
[1753055287866,5.5128,181.3,181.26,3.14]
[1753055288260,3.43751416,181.34,181.24,5.5143]
[1753055288460,3.15,181.33,181.24,8.6543]
[1753055289063,3.15,181.33,181.25,3.14]
[1753055290160,3.15,181.33,181.25,8.6542]
[1753055290361,3.15,181.33,181.26,3.14]
[1753055290761,5.5136,181.28,181.27,3.14]
[1753055292160,5.5131,181.29,181.27,3.14]
[1753055292362,3.15,181.3,181.28,3.14]
[1753055292861,3.15,181.29,181.28,3.14]
[1753055293068,8.663,181.29,181.28,3.14]
[1753055293765,5.5137,181.27,181.26,3.14]
[1753055293964,3.15,181.34,181.26,3.14]
[1753055294164,5.5136,181.28,181.26,3.14]
[1753055294370,8.6636,181.28,181.26,3.14]
[1753055294567,8.6636,181.28,181.27,3.14]
[1753055294964,5.5131,181.29,181.25,5.5142]
[1753055295263,5.5131,181.29,181.28,3.14]
[1753055295864,8.6628,181.3,181.28,3.14]
[1753055296069,8.6628,181.3,181.29,3.14]
[1753055296266,8.6628,181.3,181.26,5.514]
[1753055296267,8.6633,181.29,181.2,208.03626165]
[1753055296567,3.15,181.28,181.27,3.14]
[1753055297068,3.15,181.34,181.27,6.57751416]
[1753055297265,3.15,181.34,181.27,3.43751416]
[1753055297467,5.5124,181.32,181.28,5.5132]
[1753055297669,8.6624,181.32,181.3,3.14]
[1753055298569,8.6624,181.31,181.3,3.14]
[1753055298762,3.15,181.36,181.28,3.14]
[1753055299163,5.513,181.3,181.28,3.14]
[1753055299369,3.15,181.36,181.28,3.14]
[1753055300174,8.663,181.29,181.28,3.14]
[1753055301770,3.43751416,181.37,181.26,3.14]
[1753055301771,3.15,181.27,181.26,3.14]
[1753055301974,3.15,181.33,181.24,3.14]
[1753055302173,3.43751416,181.31,181.22,3.14]
[1753055302471,3.15,181.3,181.21,105.1]
[1753055302667,3.43751416,181.28,181.21,105.1]
[1753055302873,3.15,181.27,181.21,105.1]
[1753055303270,3.15,181.27,181.2,211.17626165]
[1753055303975,3.15,181.22,181.21,3.14]
[1753055304173,3.15,181.24,181.21,3.14]
[1753055304475,3.15,181.24,181.22,3.14]
[1753055304774,5.5149,181.23,181.22,3.14]
[1753055305069,3.43751416,181.28,181.2,211.17626165]
[1753055305273,3.15,181.21,181.2,211.17626165]
[1753055306074,3.43751416,181.28,181.18,3.14]
[1753055306075,3.15,181.2,181.18,3.14]
[1753055306265,3.15,181.19,181.18,3.14]
[1753055306471,3.43751416,181.28,181.17,5.5167]
[1753055306766,3.15,181.2,181.17,3.14]
[1753055306970,3.15,181.19,181.18,3.14]
[1753055307571,8.6662,181.19,181.18,3.14]
[1753055308271,3.15,181.19,181.18,3.14]
[1753055309774,3.09,181.19,181.18,3.14]
[1753055309978,5.5158,181.2,181.17,5.5166]
[1753055310179,8.6058,181.2,181.19,3.15]
[1753055310582,8.6061,181.19,181.18,3.15]
[1753055310883,3.09,181.19,181.18,3.15]
[1753055311182,3.09,181.19,181.16,477.8104358]
[1753055311382,3.09,181.23,181.16,108.21]
[1753055312079,3.09,181.23,181.17,3.15]
[1753055312979,3.09,181.23,181.16,108.21]
[1753055313482,3.09,181.23,181.17,8.6666]
[1753055313679,3.09,181.23,181.18,3.15]
[1753055314483,3.09,181.21,181.2,3.15]
[1753055314781,3.09,181.26,181.18,2.1104358]
[1753055315083,3.09,181.26,181.17,3.15]
[1753055315481,3.09,181.26,181.19,8.666]
[1753055315680,3.09,181.26,181.19,3.15]
[1753055315879,2.1104358,181.27,181.19,3.15]
[1753055316082,3.09,181.26,181.19,3.15]
[1753055316483,3.09,181.18,181.17,3.15]
[1753055316682,3.09,181.18,181.16,105.06]
[1753055317072,2.1104358,181.23,181.13,8.6679]
[1753055317280,3.09,181.2,181.13,3.15]
[1753055317579,5.5174,181.15,181.14,3.15]
[1753055317782,8.6074,181.15,181.14,3.15]
[1753055318278,8.6079,181.13,181.12,3.15]
[1753055318487,2.1104358,181.21,181.12,3.15]
[1753055318684,3.09,181.2,181.12,8.6682]
[1753055318884,5.5175,181.15,181.12,8.6682]
[1753055319185,3.09,181.2,181.12,8.6682]
[1753055319186,3.09,181.13,181.12,3.15]
[1753055319390,5.5188,181.11,181.08,5.2604358]
[1753055319582,8.6088,181.11,181.09,3.15]
[1753055319782,3.09,181.11,181.1,3.15]
[1753055320776,8.608,181.13,181.1,3.15]
[1753055320985,8.608,181.13,181.11,3.15]
[1753055321279,8.6082,181.12,181.11,3.15]
[1753055321477,3.09,181.12,181.08,2.1104358]
[1753055321675,3.09,181.14,181.05,3.15]
[1753055321878,11.0322,181.2,181.05,3.15]
[1753055321879,3.09,181.06,181.05,3.15]
[1753055322076,3.09,181.06,181.04,105.02]
[1753055322278,3.09,181.06,181.04,108.17]
[1753055322485,5.5204,181.05,181.04,108.17]
[1753055323284,8.6101,181.06,181.04,108.17]
[1753055323485,8.6101,181.06,181.04,105.02]
[1753055323685,5.5204,181.05,181.04,108.17]
[1753055324092,3.09,181.06,181.04,105.02]
[1753055324288,3.09,181.06,181.05,3.15]
[1753055324489,8.6103,181.06,181.05,3.15]
[1753055324681,3.09,181.05,181.04,108.17]
[1753055324877,3.09,181.05,181.04,3.15]
[1753055325082,5.2004358,181.11,181.04,3.15]
[1753055325280,11.0349,181.15,181.04,3.15]
[1753055325281,3.44487485,181.12,181.04,3.15]
[1753055325481,8.6104,181.05,181.04,3.15]
[1753055326290,3.44487485,181.09,181.01,3.15]
[1753055326486,3.09,181.08,181.01,3.15]
[1753055326687,3.09,181.08,181.0,105.02]
[1753055327390,3.09,181.08,181.01,3.15]
[1753055327593,3.09,181.03,181.02,3.15]
[1753055327785,3.09,181.02,181.0,108.17]
[1753055327986,8.6116,181.01,181.0,108.17]
[1753055328492,3.09,181.01,181.0,108.17]
[1753055329293,8.6116,181.01,181.0,108.17]
[1753055329991,3.09,181.01,181.0,108.17]
[1753055330187,3.09,181.14,181.01,3.15]
[1753055330389,3.09,181.12,181.01,3.15]
[1753055330598,3.09,181.04,181.01,3.15]
[1753055330790,3.09,181.04,181.03,3.15]
[1753055330991,11.0349,181.15,181.01,3.15]
[1753055330992,3.09,181.02,181.01,3.15]
[1753055331591,8.6113,181.02,181.01,3.15]
[1753055332191,3.09,181.09,181.01,3.15]
[1753055332597,5.5205,181.05,181.01,3.15]
[1753055332795,8.6105,181.05,181.01,5.5214]
[1753055332987,3.09,181.05,181.02,3.15]
[1753055333398,5.5203,181.06,181.02,5.521]
[1753055333700,8.6103,181.06,181.04,3.15]
[1753055333895,8.6103,181.06,181.05,3.15]
[1753055334390,5.5203,181.06,181.05,3.15]
[1753055334594,8.6107,181.04,181.03,3.15]
[1753055335693,3.09,181.03,181.01,3.15]
[1753055335896,3.09,181.02,181.01,3.15]
[1753055336500,3.09,181.02,180.99,108.46487485]
[1753055336501,3.09,181.01,181.0,3.15]
[1753055336997,8.6118,181.01,181.0,3.15]
[1753055337590,3.09,181.08,181.0,3.15]
[1753055337994,3.09,181.08,181.01,5.5215]
[1753055338194,3.21,181.1,181.02,3.44487485]
[1753055338402,3.21,181.1,181.03,3.22]
[1753055338698,6.95389828,181.09,181.07,3.22]
[1753055338893,3.21,181.08,181.07,3.22]
[1753055339394,3.21,181.11,181.07,3.22]
[1753055339598,6.95357691,181.1,181.08,3.22]
[1753055339801,5.5192,181.09,181.08,3.22]
[1753055339999,8.7292,181.09,181.08,3.22]
[1753055340196,3.44487485,181.16,181.06,3.22]
[1753055340397,3.21,181.07,181.05,105.0]
[1753055340594,3.21,181.06,181.05,105.0]
[1753055340790,3.21,181.06,181.05,108.22]
[1753055341401,3.21,181.07,181.06,3.22]
[1753055341602,3.21,181.12,181.06,3.22]
[1753055341799,5.5191,181.1,181.06,5.52]
[1753055341992,5.5191,181.1,181.07,3.22]
[1753055342198,3.21,181.12,181.09,3.22]
[1753055342394,3.21,181.12,181.1,3.22]
[1753055342597,3.21,181.16,181.11,6.66487485]
[1753055342803,11.0306,181.22,181.11,6.66487485]
[1753055342804,11.0306,181.22,181.11,3.44487485]
[1753055342805,3.21,181.15,181.11,3.44487485]
[1753055343100,3.21,181.14,181.13,3.22]
[1753055343407,3.21,181.21,181.13,3.22]
[1753055343606,3.21,181.19,181.13,3.22]
[1753055343798,3.21,181.17,181.14,3.22]
[1753055343998,5.5175,181.15,181.14,3.22]
[1753055344399,8.7275,181.15,181.14,3.22]
[1753055344604,476.1,181.27,181.11,8.96317485]
[1753055344605,5.517,181.17,181.12,3.22]
[1753055344907,3.21,181.17,181.12,3.22]
[1753055345402,3.21,181.23,181.15,3.22]
[1753055345602,3.75214538,181.22,181.15,104.96]
[1753055345802,3.21,181.22,181.16,3.22]
[1753055346196,3.44487485,181.26,181.17,3.22]
[1753055346395,3.21,181.21,181.17,3.22]
[1753055346605,5.5158,181.2,181.19,3.22]
[1753055346901,3.21,181.21,181.18,3.22]
[1753055347105,3.21,181.24,181.18,3.22]
[1753055348306,3.44487485,181.29,181.19,3.22]
[1753055348307,8.7258,181.2,181.19,3.22]
[1753055349507,5.5155,181.21,181.19,3.22]
[1753055349709,8.7255,181.21,181.2,3.22]
[1753055350002,5.5147,181.24,181.2,3.44487485]
[1753055350206,3.21,181.23,181.22,3.22]
[1753055350407,3.44487485,181.29,181.22,3.22]
[1753055350705,3.21,181.28,181.22,3.22]
[1753055350901,3.21,181.28,181.22,8.95987485]
[1753055351104,3.21,181.27,181.22,3.44487485]
[1753055351302,3.21,181.26,181.24,3.22]
[1753055351503,3.21,181.31,181.24,3.22]
[1753055351699,5.5131,181.29,181.24,3.22]
[1753055351904,3.21,181.28,181.24,3.22]
[1753055352308,8.7236,181.28,181.24,3.22]
[1753055352509,8.7236,181.28,181.24,8.7345]
[1753055352710,3.21,181.28,181.26,3.22]
[1753055352909,5.5137,181.27,181.26,3.22]
[1753055353206,3.44487485,181.34,181.27,3.22]
[1753055353406,3.21,181.31,181.27,3.22]
[1753055353704,374.52487485,181.37,181.25,3.44487485]
[1753055353905,3.21,181.36,181.26,3.22]
[1753055354313,374.52487485,181.37,181.26,3.22]
[1753055354314,3.21,181.33,181.26,3.22]
[1753055355009,3.21,181.33,181.24,3.22]
[1753055355709,8.7235,181.28,181.25,3.22]
[1753055356205,5.5135,181.28,181.25,3.22]
[1753055356712,3.21,181.27,181.25,3.22]
[1753055356915,3.44487485,181.34,181.25,3.22]
[1753055356916,3.21,181.26,181.25,3.22]
[1753055357508,8.724,181.26,181.25,3.22]
[1753055357809,3.44487485,181.34,181.23,8.95967485]
[1753055357810,3.44487485,181.34,181.23,3.22]
[1753055358007,3.44487485,181.34,181.09,387.53]
[1753055358008,3.21,181.3,181.2,6.66487485]
[1753055358211,3.21,181.21,181.2,3.22]
[1753055358605,8.726,181.2,181.17,3.44487485]
[1753055359114,8.726,181.2,181.19,3.22]
[1753055359412,8.726,181.2,181.17,3.44487485]
[1753055359413,5.5155,181.21,181.18,3.22]
[1753055359915,5.5155,181.21,181.19,3.22]
[1753055360111,5.5155,181.21,181.2,3.22]
[1753055360317,8.7258,181.2,181.18,3.22]
[1753055360517,3.21,181.2,181.18,3.22]
[1753055361316,3.21,181.2,181.18,5.5164]
[1753055361513,3.21,181.22,181.18,5.5164]
[1753055361915,3.21,181.22,181.2,3.22]
[1753055362823,3.21,181.27,181.2,3.22]
[1753055363113,5.5155,181.21,181.18,3.22]
[1753055363313,8.7255,181.21,181.19,3.22]
[1753055363510,3.21,181.2,181.19,3.22]
[1753055364219,3.44487485,181.28,181.17,6.66487485]
[1753055364413,3.21,181.18,181.17,6.66487485]
[1753055364909,3.21,181.27,181.17,6.66487485]
[1753055365109,3.21,181.27,181.17,3.22]
[1753055365310,3.21,181.24,181.15,108.04]
[1753055365523,5.5168,181.17,181.15,108.04]
[1753055365715,3.21,181.24,181.15,108.04]
[1753055366115,5.5164,181.19,181.15,110.3372]
[1753055366312,3.21,181.18,181.16,3.22]
[1753055366517,3.44487485,181.25,181.16,3.22]
[1753055366717,3.21,181.19,181.17,3.22]
[1753055367114,3.21,181.18,181.17,3.22]
[1753055368115,2.97,181.24,181.17,3.22]
[1753055369114,5.5164,181.18,181.17,3.22]
[1753055369316,16.51,181.34,181.17,3.44487485]
[1753055369519,16.51,181.38,181.29,3.44487485]
[1753055369720,2.97,181.44,181.3,2.92]
[1753055369920,370.84,181.47,181.22,112.16]
[1753055369921,112.6,181.46,181.33,2.92]
[1753055370120,5.5107,181.37,181.31,11.87707485]
[1753055370322,2.97,181.36,181.31,8.95707485]
[1753055370623,3.44487485,181.42,181.31,3.44487485]
[1753055370822,2.97,181.33,181.31,6.36487485]
[1753055371216,2.97,181.33,181.32,2.92]
[1753055371423,3.44487485,181.43,181.31,3.44487485]
[1753055371629,2.97,181.32,181.31,3.44487485]
[1753055371926,5.5119,181.33,181.28,3.44487485]
[1753055372122,5.5119,181.33,181.28,2.92]
[1753055372421,2.97,181.3,181.28,2.92]
[1753055372922,2.97,181.3,181.29,2.92]
[1753055373123,3.44487485,181.4,181.31,2.92]
[1753055373321,3.44487485,181.42,181.32,3.44487485]
[1753055373522,2.97,181.41,181.3,3.44487485]
[1753055373725,2.97,181.41,181.3,6.36487485]
[1753055373726,3.44487485,181.4,181.3,6.36487485]
[1753055373926,2.97,181.39,181.3,6.36487485]
[1753055374229,2.97,181.32,181.31,2.92]
[1753055374722,2.97,181.34,181.3,3.44487485]
[1753055374928,2.97,181.41,181.33,2.92]
[1753055375127,2.97,181.41,181.35,2.92]
[1753055375824,2.97,181.4,181.36,3.44487485]
[1753055376031,2.97,181.42,181.37,4.82878854]
[1753055376231,2.97,181.42,181.32,2.92]
[1753055376232,2.97,181.42,181.38,4.82878854]
[1753055376432,2.97,181.42,181.39,8.854e-05]
[1753055376731,2.97,181.42,181.32,7.44792657]
[1753055377133,8.4814,181.35,181.32,7.44792657]
[1753055377630,8.4814,181.35,181.33,2.92]
[1753055378132,3.44487485,181.37,181.31,4.52792657]
[1753055378325,2.97,181.36,181.3,4.52792657]
[1753055378725,3.44487485,181.37,181.3,4.52792657]
[1753055378929,2.97,181.36,181.31,4.52792657]
[1753055379228,2.97,181.36,181.3,4.52792657]
[1753055380031,2.97,181.36,181.31,4.52792657]
[1753055380434,2.97,181.46,181.32,7.44792657]
[1753055380633,370.84,181.47,181.32,7.44792657]
[1753055380634,3.44487485,181.4,181.32,7.44792657]
[1753055380828,2.97,181.39,181.32,7.44792657]
[1753055381130,2.97,181.39,181.35,4.52792657]
[1753055381329,3.44487485,181.44,181.36,7.44792657]
[1753055381330,2.97,181.38,181.36,7.44792657]
[1753055382124,2.97,181.43,181.37,2.92]
[1753055382325,2.97,181.43,181.37,7.44792657]
[1753055383235,2.97,181.38,181.36,4.52792657]
[1753055383432,2.97,181.38,181.35,4.52792657]
[1753055383636,5.5109,181.36,181.35,4.52792657]
[1753055383834,2.97,181.36,181.34,4.52792657]
[1753055384231,8.4812,181.35,181.34,4.52792657]
[1753055384434,3.44487485,181.39,181.31,5.98856809]
[1753055384630,2.97,181.34,181.31,5.98856809]
[1753055384932,2.97,181.39,181.3,8.90856809]
[1753055385126,2.97,181.39,181.34,4.52211846]
[1753055386030,2.97,181.39,181.36,4.52211846]
[1753055386239,2.97,181.39,181.35,4.52211846]
[1753055386426,2.97,181.39,181.33,4.52211846]
[1753055386632,2.97,181.34,181.28,2.92]
[1753055387235,2.97,181.33,181.25,2.92]
[1753055387633,3.44487485,181.34,181.23,11.50336809]
[1753055387834,2.97,181.28,181.26,2.92]
[1753055388436,2.97,181.36,181.28,2.92]
[1753055388632,2.97,181.36,181.29,7.62104697]
[1753055388834,2.97,181.36,181.3,4.70104697]
[1753055389036,8.4821,181.32,181.31,4.70104697]
[1753055391136,8.4821,181.32,181.31,7.62104697]
[1753055391337,5.5121,181.32,181.31,7.62104697]
[1753055392140,8.4821,181.32,181.31,4.70104697]
[1753055392834,8.4821,181.32,181.31,6.92256635]
[1753055393440,2.97,181.39,181.32,2.92]
[1753055393635,2.97,181.39,181.33,6.92256635]
[1753055393932,2.97,181.39,181.34,4.70104697]
[1753055394130,2.97,181.39,181.35,4.70104697]
[1753055394328,2.97,181.39,181.36,4.70104697]
[1753055394538,2.97,181.39,181.37,4.697e-05]
[1753055394841,5.5118,181.33,181.32,2.92]
[1753055395034,5.5118,181.33,181.32,5.14136601]
[1753055395639,8.4818,181.33,181.32,2.22136601]
[1753055396037,8.4818,181.33,181.32,5.14136601]
[1753055396836,5.5118,181.33,181.32,5.14136601]
[1753055397237,2.97,181.35,181.32,5.14136601]
[1753055397538,5.5116,181.34,181.33,5.14136601]
[1753055398242,5.5116,181.34,181.33,5.33136601]
[1753055398442,8.6216,181.34,181.33,2.22136601]
[1753055399343,8.6221,181.33,181.32,3.11]
[1753055399540,8.6221,181.33,181.32,2.22066933]
[1753055400536,5.5121,181.33,181.32,5.33066933]
[1753055401841,3.11,181.33,181.22,6.55487485]
[1753055402141,3.11,181.33,181.24,3.11]
[1753055402449,3.11,181.26,181.18,6.55487485]
[1753055402644,3.11,181.26,181.19,3.11]
[1753055402948,5.5155,181.21,181.19,3.11]
[1753055403139,3.11,181.27,181.19,3.11]
[1753055403541,5.5158,181.2,181.19,3.11]
[1753055403748,3.11,181.27,181.19,3.11]
[1753055404149,5.5158,181.2,181.19,3.11]
[1753055404946,5.5168,181.17,181.13,3.44487485]
[1753055405148,3.11,181.2,181.13,3.44487485]
[1753055405355,5.5164,181.18,181.15,5.5172]
[1753055405545,5.5164,181.18,181.16,3.11]
[1753055405748,3.11,181.24,181.16,6.55487485]
[1753055406150,5.516,181.2,181.17,3.11]
[1753055407254,5.516,181.2,181.19,3.11]
[1753055407952,5.517,181.16,181.14,3.11]
[1753055408249,5.517,181.16,181.15,3.11]
[1753055408450,3.11,181.2,181.09,8.6289]
[1753055408955,5.5182,181.13,181.1,3.11]
[1753055409150,3.44487485,181.18,181.11,3.11]
[1753055409354,3.11,181.17,181.05,3.44487485]
[1753055409654,3.11,181.17,181.07,3.11]
[1753055410063,5.5194,181.09,181.08,3.11]
[1753055411855,3.44487485,181.15,180.98,109.78]
[1753055412054,3.11,181.09,181.03,3.11]
[1753055412963,5.5198,181.07,181.03,3.11]
[1753055413161,3.11,181.09,181.03,3.11]
[1753055413363,3.44487485,181.08,181.01,3.11]
[1753055413558,3.11,181.03,181.01,3.11]
[1753055413962,5.5201,181.06,181.01,3.11]
[1753055414157,3.11,181.07,181.01,3.11]
[1753055415262,3.11,181.06,181.0,3.44487485]
[1753055415464,3.11,181.06,181.0,3.11]
[1753055415962,3.11,181.06,180.95,3.11]
[1753055416167,3.11,181.04,180.95,3.11]
[1753055416369,3.11,181.02,180.95,3.11]
[1753055417071,3.11,181.05,180.99,3.44487485]
[1753055417262,3.11,181.05,181.0,3.11]
[1753055417665,3.44487485,181.1,181.0,3.11]
[1753055417666,3.11,181.09,181.0,3.11]
[1753055418169,5.5212,181.03,180.99,5.5221]
[1753055418363,3.44487485,181.1,181.02,3.11]
[1753055418560,3.44487485,181.1,181.03,3.11]
[1753055418561,5.5206,181.05,181.03,3.11]
[1753055418869,3.11,181.09,181.03,3.11]
[1753055419171,3.11,181.09,181.01,6.55487485]
[1753055419471,5.5212,181.03,181.02,3.11]
[1753055419865,5.5207,181.05,181.02,3.11]
[1753055420067,3.11,181.09,181.02,3.11]
[1753055421969,3.11,181.07,181.01,3.11]
[1753055422367,3.11,181.1,181.04,3.11]
[1753055422973,5.5192,181.09,181.05,5.5203]
[1753055423275,3.11,181.1,181.04,3.11]
[1753055423469,3.11,181.1,181.05,3.11]
[1753055423669,3.11,181.13,181.03,6.55487485]
[1753055424070,5.5202,181.06,181.03,3.44487485]
[1753055424264,213.78992372,181.14,181.03,3.44487485]
[1753055424573,8.6301,181.06,181.05,3.11]
[1753055424769,5.5201,181.06,181.05,3.11]
[1753055424973,3.11,181.05,181.04,3.11]
[1753055425274,3.11,181.05,181.0,8.96657485]
[1753055425466,3.11,181.05,181.0,3.44487485]
[1753055425668,3.11,181.12,181.03,3.11]
[1753055426170,5.5193,181.09,181.05,3.44487485]
[1753055426375,3.11,181.12,181.06,3.11]
[1753055426573,3.11,181.12,181.07,3.44487485]
[1753055426876,5.5186,181.11,181.09,3.11]
[1753055427072,3.11,181.13,181.09,3.11]
[1753055427277,3.11,181.13,181.06,3.11]
[1753055427668,3.11,181.13,181.03,3.11]
[1753055427874,3.11,181.1,181.04,3.11]
[1753055428373,5.5202,181.06,181.05,2.95]
[1753055429281,2.92,181.05,181.03,2.95]
[1753055429479,3.44487485,181.11,181.04,2.95]
[1753055429674,2.92,181.06,181.04,2.95]
[1753055429872,5.5211,181.03,181.02,2.95]
[1753055430076,2.92,181.03,181.01,2.95]
[1753055430277,2.92,181.03,180.97,3.44487485]
[1753055430278,2.92,181.03,180.98,5.5223]
[1753055430475,8.441,181.03,181.02,2.95]
[1753055430878,5.5219,181.0,180.99,2.95]
[1753055431273,5.5219,181.0,180.95,3.44487485]
[1753055431274,2.92,181.02,180.97,5.5226]
[1753055431476,5.5218,181.01,180.98,2.95]
[1753055431782,2.92,181.02,180.98,2.95]
[1753055432483,5.5216,181.01,180.98,2.95]
[1753055432684,2.92,181.01,180.99,2.95]
[1753055433379,2.92,181.0,180.94,3.44487485]
[1753055433580,2.92,181.0,180.95,2.95]
[1753055434688,5.5224,180.99,180.96,2.95]